Cogmind - Beta 13 @@@ ROGUE MODE // 2024.04.06 @ 20:33:59 Player: Dogbone Result: Destroyed by G-34 Mercenary with Small Laser Performance ------------- Evolutions (1) 500 Regions Visited (3) 600 Robots Destroyed (18) 90 Value Destroyed (445) 445 Prototype IDs (2) 40 Alien Tech Used (0) 0 Bonus (0) 0 TOTAL SCORE: 1675 Bonus ------- None Cogmind --------- Core Integrity 0/400 Matter 57/300 Energy 100/100 System Corruption 3% Temperature Cool (6) Movement Flying (180) Ox2 Location -9/Storage Parts ------- > --- POWER (1) -------- (None) > --- PROPULSION (3) --- Improved Flight Unit Improved Flight Unit > --- UTILITY (3) ------ Drone Bay (0/2) Drone Bay (0/2) > --- WEAPON (2) ------- (None) > --- INVENTORY (5) ---- Light Ion Engine Improved Flight Unit Improved Flight Unit ECM Suite Peak State ------------ > --- POWER ------------ Improved Ion Engine > --- PROPULSION ------- Improved Flight Unit Improved Flight Unit Improved Flight Unit > --- UTILITY ---------- Large Storage Unit Improved Targeting Computer ECM Suite > --- WEAPON ----------- Shock Rifle Datajack > --- INVENTORY -------- Ion Engine VTOL Module Improved Flight Unit Cryofiber Web Cryofiber Web ECM Suite ECM Suite Small Laser Improved Medium Laser EM Pulse Cannon EM Pulse Cannon Light Assault Rifle Shotgun Shotgun Welding Torch [Rating: 22] Favorites ----------- Power Light Ion Engine Engine Light Ion Engine Propulsion Wheel Treads Light Treads Wheel Wheel Flight Unit Improved Flight Unit Utility ECM Suite Device ECM Suite Storage Large Storage Unit Processor Improved Targeting Computer Weapon Datajack Energy Gun Shock Rifle Energy Cannon EM Pulse Cannon Ballistic Gun Light Assault Rifle Launcher Rocket Launcher Special Weapon Welding Torch Special Melee Weapon Datajack Build | -11 -10 -9 -9 ------- Run | Yrd Mat Mat Sto Slots Evolved 2 | . . 2 . Power . | . . . . Propulsion 1 | . . 1 . Utility 1 | . . 1 . Weapon . | . . . . Parts Attached 58 | 6 3 21 28 Power 2 | 1 . 1 . Engine 2 | 1 . 1 . Core . | . . . . Reactor . | . . . . Propulsion 10 | 2 . 3 5 Treads 2 | . . 1 1 Leg . | . . . . Wheel 4 | 2 . 2 . Hover . | . . . . Flight 4 | . . . 4 Utility 18 | 1 1 6 10 Device 14 | 1 1 3 9 Storage 2 | . . 1 1 Processor 2 | . . 2 . Hackware . | . . . . Protection . | . . . . Artifact . | . . . . Weapon 28 | 2 2 11 13 Energy Gun 8 | . . 5 3 Energy Cannon 2 | . . 1 1 Ballistic Gun 9 | 2 . 3 4 Ballistic Cannon . | . . . . Launcher 1 | . . 1 . Special Weapon 2 | . 1 . 1 Impact Weapon . | . . . . Slashing Weapon . | . . . . Piercing Weapon . | . . . . Special Melee Weapon 6 | . 1 1 4 Unidentified Prototypes 2 | . . 1 1 Parts Lost 13 | . . 7 6 Power 2 | . . 1 1 Propulsion 3 | . . 3 . Utility 4 | . . 1 3 Weapon 4 | . . 2 2 Highest Loss Streak 6 | . . 6 5 To Critical Strikes . | . . . . Average Slot Usage (%) 86 | . 92 91 81 Engine 9 | . 14 9 8 Treads 2 | . . 2 3 Wheel 15 | . 28 25 1 Flight 10 | . . . 23 Device 14 | . 21 9 16 Storage 6 | . . 10 4 Processor 8 | . . 11 7 Energy Gun 7 | . . 10 7 Ballistic Gun 4 | . 18 2 2 Special Weapon 1 | . 4 1 1 Special Melee Weapon 4 | . 6 6 2 Naked Turns . | . . . . Heaviest Build 33 | 6 7 33 33 Greatest Support 30 | 20 20 30 23 Greatest Overweight (x) 10 | . . 7 10 Average Overweight (x) . | . . . . Largest Inventory Capacity 15 | 5 5 15 15 Average Capacity 9 | 5 5 14 7 Most Carried 15 | 4 5 15 15 Average Carried 7 | 1 4 11 6 Final Capacity 15 | 5 5 15 5 Final Carried 14 | 3 4 14 4 Class Distribution -------------------- 95% | Mutant 4% | Scavenger-Mutant Dominant Class ---------------- Mutant | -10/Materials Mutant | -9/Materials Mutant | -9/Storage Resources | -11 -10 -9 -9 ----------- Run | Yrd Mat Mat Sto Matter Collected 586 | 276 . 249 61 Remotely . | . . . . Salvage Created 408 | 57 . 351 . Parts 33 | 4 . 29 . Haulers Intercepted 1 | . . 1 . Recyclers Shooed . | . . . . Parts Field Recycled . | . . . . Retrieved Matter . | . . . . Parts Self-Destructed . | . . . . Prevented . | . . . . Kills | -11 -10 -9 -9 ------- Run | Yrd Mat Mat Sto Combat Hostiles Destroyed 13 | 1 . 12 . Guns 5 | 1 . 4 . AOE 8 | . . 8 . Classes Destroyed 8 | 2 . 6 . Worker 1 | . . 1 . Builder 1 | . . 1 . Tunneler 1 | 1 . . . Hauler 1 | . . 1 . Watcher 1 | . . 1 . Swarmer 3 | . . 3 . Grunt 9 | 1 . 8 . Sentry 1 | . . 1 . Best Kill Streak 12 | 1 . 12 . Combat Bots Only 8 | 1 . 8 . Max Kills in Single Turn 8 | 1 . 8 . Gunslinging 1 | . . 1 . Exploded 5 | . . 5 . Melee . | . . . . Uniques/NPCs Destroyed . | . . . . Combat | -11 -10 -9 -9 -------- Run | Yrd Mat Mat Sto Hostile Shots Fired 214 | 3 . 34 177 Missed 87 | 2 . 8 77 Damage Taken 1611 | 11 . 568 1032 Core 402 | . . 172 230 Absorbed by Shields . | . . . . Core Remaining (%) 100 | 100 100 . . Volleys Fired 48 | 8 . 15 25 Largest 2 | 2 . 2 2 Hottest 83 | 40 . 83 76 Shots Fired 74 | 16 . 23 35 Gun 54 | 16 . 20 18 Cannon . | . . . . Launcher 2 | . . 2 . Special 18 | . . 1 17 Kinetic 35 | 16 . 12 7 Thermal 29 | . . 1 28 Explosive 2 | . . 2 . Electromagnetic 8 | . . 8 . Robot Hit Streak 7 | 6 . 6 7 Robot Miss Streak 4 | 1 . 4 2 Penetration Max . | . . . . Secondary Targets 1 | . . 1 . Max Gunslinging Chain 1 | . . 1 . Shots Hit Robots 46 | 12 1 19 14 Core Hits 29 | 5 . 22 2 Critical Kills . | . . . . Critical Parts Destroyed . | . . . . Critical Strikes . | . . . . Melee Attacks 12 | . 1 4 7 Impact . | . . . . Slashing . | . . . . Piercing . | . . . . Sneak Attacks 5 | . 1 1 3 Combat Hostiles . | . . . . Follow-up Attacks . | . . . . Damage Inflicted 1612 | 97 . 1391 124 Guns 449 | 97 . 228 124 Cannons . | . . . . Explosions 1163 | . . 1163 . Melee . | . . . . Ramming . | . . . . Kinetic 250 | 97 . 115 38 Thermal 86 | . . . 86 Explosive 1163 | . . 1163 . Electromagnetic 113 | . . 113 . Impact . | . . . . Slashing . | . . . . Piercing . | . . . . Highest Corruption 3 | . . . 3 Average Corruption 2 | . . . 2 Corruption Purged . | . . . . Corruption Blocked . | . . . . Effects 7 | . . . 7 Matter Fused 3 | . . . 3 Heat Flow Errors 1 | . . . 1 Data Loss (minor) 2 | . . . 2 Weapon Failures 1 | . . . 1 Overload Shots . | . . . . Overflow Damage 96 | . . 96 . Projectiles . | . . . . Explosions 96 | . . 96 . Melee . | . . . . Knockbacks . | . . . . Impact . | . . . . Kinetic . | . . . . Secondary . | . . . . Self-Inflicted Damage 248 | . . 248 . Shots 3 | . . 3 . Rammed . | . . . . Targets Rammed . | . . . . Kicked . | . . . . Crushed . | . . . . Highest Temperature 281 | 6 . 32 281 Average Temperature 73 | 6 . 9 93 Received Heat Transfer 453 | 6 . 153 294 Siege Activations . | . . . . Robots Corrupted . | . . . . Combat Hostiles . | . . . . Parts Fried . | . . . . Impact Corruptions . | . . . . Robots Melted . | . . . . Combat Hostiles . | . . . . Parts Melted . | . . . . Heat Transferred 185 | . . . 185 Parts Sabotaged . | . . . . Parts Stolen . | . . . . Parts Stripped . | . . . . Power Chain Reactions . | . . . . Alert | -11 -10 -9 -9 ------- Run | Yrd Mat Mat Sto Peak Influence 433 | 25 33 433 125 Initial 110 | . 16 13 110 Average 84 | 7 20 143 65 Maximum Alert Level 2 | . . 2 . Low Security (%) 91 | 100 100 76 100 Level 1 2 | . . 7 . Level 2 5 | . . 15 . Level 3 . | . . . . Level 4 . | . . . . Level 5 . | . . . . High Security . | . . . . Max Security . | . . . . Squads Dispatched 8 | . . 4 4 Investigation 3 | . . 1 2 Extermination . | . . . . Reinforcement 5 | . . 3 2 Assault . | . . . . Garrison . | . . . . Intercept . | . . . . Searches Triggered . | . . . . Construction Impeded . | . . . . Haulers Reinforced . | . . . . Active Scanning Responses . | . . . . Cargo Convoy Interrupts . | . . . . Stealth | -11 -10 -9 -9 --------- Run | Yrd Mat Mat Sto Distress Signals 3 | . . 1 2 Communications Jammed . | . . . . Distress Signals . | . . . . Times Spotted 71 | 1 1 22 47 Peak Tracking Total 13 | 1 1 9 13 Tactical Retreats 9 | . . 1 8 Traps | -11 -10 -9 -9 ------- Run | Yrd Mat Mat Sto Traps Triggered 2 | . . . 2 Indirectly . | . . . . Trap Hack Attempts . | . . . . Triggered . | . . . . Disarmed . | . . . . Reprogrammed . | . . . . Reused . | . . . . Traps Extracted . | . . . . Installed . | . . . . Triggered . | . . . . Machines | -11 -10 -9 -9 ---------- Run | Yrd Mat Mat Sto Machines Disabled 3 | . . 3 . Max in Single Turn 3 | . . 3 . Machines Repaired . | . . . . Machines Dismantled . | . . . . Machines Sabotaged . | . . . . Overloaded Fab Kills . | . . . . Hacking | -11 -10 -9 -9 --------- Run | Yrd Mat Mat Sto Machines Accessed 9 | . 2 2 5 Terminals 7 | . 1 1 5 Fabricators . | . . . . Repair Stations . | . . . . Recycling Units 2 | . 1 1 . Scanalyzers . | . . . . Garrison Access . | . . . . Total Hacks 28 | . 10 5 13 Successful 14 | . 9 1 4 Failed 14 | . 1 4 9 Catastrophic 4 | . . 2 2 Database Lockouts . | . . . . Manual . | . . . . Terminals 17 | . 1 3 13 Fabricators . | . . . . Repair Stations . | . . . . Recycling Units 11 | . 9 2 . Scanalyzers . | . . . . Garrison Access . | . . . . Terminal Hacks 6 | . 1 1 4 Record 1 | . 1 . . Open Door 2 | . . . 2 Alert Level 1 | . . 1 . Unreport Threat 2 | . . . 2 Fabricator Hacks . | . . . . Repair Station Hacks . | . . . . Recycling Unit Hacks 8 | . 8 . . Recycle Component 3 | . 3 . . Process 2 | . 2 . . Report Inventory 2 | . 2 . . Retrieve Components 1 | . 1 . . Scanalyzer . | . . . . Garrison Access Hacks . | . . . . Unauthorized Hacks . | . . . . Terminals . | . . . . Fabricators . | . . . . Repair Stations . | . . . . Recycling Units . | . . . . Scanalyzers . | . . . . Garrison Access . | . . . . Data Cores Recovered . | . . . . Used . | . . . . Hacking Detections 8 | . 2 2 4 Full Trace Events 4 | . 1 1 2 Feedback Events . | . . . . Feedback Blocked . | . . . . Robot Schematics Acquired . | . . . . Robots Built . | . . . . Authchips . | . . . . Time . | . . . . Total Robot Build Rating . | . . . . Part Schematics Acquired . | . . . . Parts Built . | . . . . Authchips . | . . . . Time . | . . . . Total Part Build Rating . | . . . . Parts Repaired . | . . . . Time . | . . . . Parts Recycled 3 | . 3 . . Recycled Matter 53 | . 53 . . Retrieved Matter . | . . . . Retrieved Components 3 | . 3 . . Parts Scanalyzed . | . . . . Part Schematics Acquired . | . . . . Parts Damaged . | . . . . Bothacking | -11 -10 -9 -9 ------------ Run | Yrd Mat Mat Sto Used RIF Installer . | . . . . Robots Hacked 7 | . 1 3 3 Non-combat 6 | . 1 2 3 Combat 1 | . . 1 . Robot Hacks Applied 8 | . 1 4 3 parse_system 2 | . . 2 . no_distress 5 | . 1 2 2 check_alert 1 | . . . 1 Relay Couplers Released . | . . . . Fabnet Peak Effective % . | . . . . Robots Rewired . | . . . . Allies Hacked . | . . . . Hacks Repelled . | . . . . Allies | -11 -10 -9 -9 -------- Run | Yrd Mat Mat Sto Total Allies . | . . . . Largest Group . | . . . . Highest-Rated Group . | . . . . Highest-Rated Ally . | . . . . Total Orders . | . . . . Ally Attacks . | . . . . Total Damage . | . . . . Kills . | . . . . Allies Corrupted . | . . . . Allies Melted . | . . . . Intel | -11 -10 -9 -9 ------- Run | Yrd Mat Mat Sto Robot Analysis Total . | . . . . Derelict Logs Recovered . | . . . . Drone Launches 33 | . . . 33 Drone Recoveries 20 | . . . 20 Exploration | -11 -10 -9 -9 ------------- Run | Yrd Mat Mat Sto Turns Passed 1142 | 93 140 426 483 Spaces Moved 1125 | 78 153 319 575 Core 23 | 17 . 3 3 Treads 20 | . . 17 3 Legs . | . . . . Wheels 572 | 61 153 299 59 Hover . | . . . . Flight 510 | . . . 510 Fastest Speed 34 | 50 80 80 34 Average Speed 68 | 73 80 95 49 Slowest Speed 550 | 80 80 400 550 Overloaded Moves . | . . . . Propulsion Burnouts . | . . . . Robots Hopped 11 | . . . 11 Cave-ins Triggered . | . . . . Exploration Rate (%) 31 | 6 31 23 64 Regions Visited 3 Branch Regions 1 Pre-discovered Areas . | . . . . Known Exits Taken . | . . . . Unknown Exits Taken 3 | 1 1 1 . Scrap Searched . | . . . . Spaces Dug 39 | . . 39 . Terrain Destroyed 47 | . . 47 . Melee . | . . . . Projectile . | . . . . AOE 47 | . . 47 . Terrain Rammed . | . . . . Walls Destroyed . | . . . . Machines Disabled . | . . . . Actions | -11 -10 -9 -9 --------- Run | Yrd Mat Mat Sto Total 1401 | 100 168 411 722 Wait 96 | . 6 28 62 Move 1101 | 77 152 318 554 Hop 10 | . . . 10 Pick Up 46 | 9 5 20 12 Fast Attach 8 | . 1 3 4 Attach 21 | 6 . 8 7 Detach 1 | . . 1 . Swap 29 | . 2 10 17 Drop 29 | . 1 4 24 Fire 48 | 8 . 15 25 Melee 12 | . 1 4 7 Ram . | . . . . Kick . | . . . . Crush . | . . . . Escape Stasis . | . . . . Rewire . | . . . . Trap . | . . . . Miscellaneous . | . . . . Route ------- -11/Scrapyard -10/Materials -9/Materials (discovered 2 exits: [*Min] / *Sto) -9/Storage History --------- Turn | Location | Event 2 | -11/Scrapyard | Met Revision 17 54 | -11/Scrapyard | Discovered new exit (range 8) 94 | -11/Scrapyard | Entered Materials 221 | -10/Materials | Discovered new exit (range 16) 234 | -10/Materials | Entered another Materials area 234 | -9/Materials | Evolved 2 slots: Propulsion x1, Utility x1 312 | -9/Materials | Build established: Mutant 555 | -9/Materials | Discovered new exit (range 12) 561 | -9/Materials | Discovered new exit (range 9) 587 | -9/Materials | Destroyed 8 combat bots 597 | -9/Materials | Lost 6 parts (1p3n2w) 660 | -9/Materials | Entered Storage 922 | -9/Storage | Core integrity fell below 50% 1020 | -9/Storage | Core integrity fell below 20% 1058 | -9/Storage | Lost 5 parts (1p2u2w) 1143 | -9/Storage | Destroyed by G-34 Mercenary with Small Laser Last Messages --------------- Acquired Drone Bay. Drone released from Drone Bay. Drone destroyed. Drone released from Drone Bay. K-01 Serf collects debris. U-05 Engineer destroyed. S-10 Pest destroyed. Drone destroyed. K-01 Serf collects debris. Acquired 27 matter. Acquired 13 matter. S-10 Pest destroyed. Acquired Lgt. Ion Engine. Drone retrieved by Drone Bay. K-01 Serf collects debris. Acquired 13 matter. Drone released from Drone Bay. Drone destroyed. Drone Bay destroyed. Acquired 8 matter. Map ----- +----------------------------------------------------+ | ?????????????????????????????????# #?? | | ?????????????????????????????????# +?? | | ?????????????????????#######?????# #?? | | ?????????????????????# ####### #?? | | ?????????????????????# #?? | | ?????????????????????# T +?? | | ?????????????????????# #?? | | ?????????????????????# ##################+##?? | | ?????????????????????## ## #??????????????? | | ??????????????????????# ## """ #??????????????? | | ??????????????????????# ## """ #??????????????? | | ??????????????????????# !=## """ #??????????????# | | ??????????????????????# *%# #??????????????# | | ??????????????????????# !|## """ #??????????????# | | ??????????????????????# ## """ #??????????????# | | ??????????????????????# ## %""" #??????????????# | | ??????????????????????# ## ########???????# | | ????????###+########### #####+#### ######### | | ?????? * "" | | ?????? %%% % %= T= | | ?????? =k%%= % ! % | | ?????????########+######k########### #####/### | | ???????????????????????#Yn%T#?????####+###### #? | | ???????????????????????##Y###?????# #T #? | | ???????????????????????#g=s#??????# """ ##" "#? | | ???????????????????????#*@ #??????# """ ##! !#? | | ???????????????????????#!!=#??????#| """ ##! !#? | | ???????????????????????#!! #??????# ##! !#? | | ???????????????????????#####??????# """ ##! !#? | | ??????????????????????????????????# """ ######? | | ??????????????????????????????????# """ #?????? | | ?????????????????????????????????# #?????? | | ?????????????????????????????????###########?????? | | ?????????????????????????????????????????????????? | | ?????????????????????????????????????????????????? | | ?????????????????????????????????????????????????? | | ?????????????????????????????????????????????????? | | | | | | | | | | | | | | | | | | | | | | | | | | | +----------------------------------------------------+ Best States ------------- Heat Dissipation 28 Energy Generation 12 Energy Capacity 265 Matter Stores 300 Matter Capacity 300 Sight Range 16 Terrain Scan Density 85 ECM Strength 2 Evasion (%) 63 Targeting Accuracy 6 Recoil Reduction 1 Item Schematics ----------------- None Robot Schematics ------------------ None Fabricated ------------ Nothing Alien Tech Used ----------------- None Achievements -------------- Everything Is Under Control Quick And Dirty Challenges ------------ None Game ------ Seed NeutronIonInterpreter Manual? 0 Play Time 00:43:17 Cumulative 1.5 hours Start 2024.04.06 @ 19:48:48 End 2024.04.06 @ 20:33:59 Sessions 1 Manual Loads 0 Difficulty Rogue Special Mode None Game No. 2 Rogue 2 Adventurer 0 Explorer 0 Win Type - Total 0 Types 0/0/0/0/0/0/0/0/0 Lore% 0 Gallery% 5 Achievement% 4 Wizard Run 0 Options --------- Layout 1 ASCII 0 Keyboard 0 Movement Mouse Keybinds 0 Fullscreen 2 Font 24/Smallcaps Map View 50x35 Zoom Use 0% Tactical HUD 0 Map Filters NONE Filters NONE Steam 1 RUN: 2e9395b5-de2c-4c95-9652-40c04086bdbf